fUSD/lending_fUSD_20250403
["ID","MTS","AMOUNT","RATE_DAILY","PERIOD"]
[357080137,1743698177532,-500.0,0.00049315,120]
[357080138,1743698177572,-264.91027392,0.00049315,120]
[357080139,1743698177606,-500.0,0.00049315,120]
[357080140,1743698177640,-500.0,0.00049315,120]
[357080141,1743698177675,-500.0,0.00049315,120]
[357080142,1743698177709,-528.2588207,0.00049315,120]
[357080143,1743698177744,-500.0,0.00049315,120]
[357080144,1743698177779,-500.0,0.00049315,120]
[357080145,1743698177812,-500.0,0.00049315,120]
[357080146,1743698177849,-500.0,0.00049315,120]
[357080147,1743698177883,-500.0,0.00049315,120]
[357080148,1743698177916,-515.36835836,0.00049315,120]
[357080149,1743698177950,-2410.55,0.00049315,120]
[357080150,1743698177985,-500.0,0.00049315,120]
[357080151,1743698178021,-593.6178918,0.00049315,120]
[357080152,1743698178056,-261.43389262,0.00049315,120]
[357080153,1743698178095,-500.0,0.00049315,120]
[357080154,1743698178131,-500.0,0.00049315,120]
[357080155,1743698178166,-500.0,0.00049315,120]
[357080156,1743698178200,-500.0,0.00049315,120]
[357080157,1743698178234,-500.0,0.00049315,120]
[357080158,1743698178267,-500.0,0.00049315,120]
[357080159,1743698178302,-500.0,0.00049315,120]
[357080160,1743698178336,-500.0,0.00049315,120]
[357080161,1743698178372,-2873.53,0.00049315,120]
[357080162,1743698178411,-537.31890081,0.00049315,120]
[357080163,1743698178447,-500.0,0.00049315,120]
[357080164,1743698178484,-500.0,0.00049315,120]
[357080165,1743698178518,-500.0,0.00049315,120]
[357080166,1743698178551,-500.0,0.00049315,120]
[357080167,1743698178586,-2156.94,0.00049315,120]
[357080168,1743698178620,-2257.61,0.00049315,120]
[357080169,1743698178656,-500.0,0.00049315,120]
[357080170,1743698178691,-513.84035762,0.00049315,120]
[357080171,1743698178726,-520.09315052,0.00049315,120]
[357080172,1743698178764,-822.14,0.00049315,120]
[357080173,1743698178799,-1615.5,0.00049315,120]
[357080174,1743698178834,-500.0,0.00049315,120]
[357080175,1743698178869,-500.0,0.00049315,120]
[357080176,1743698178904,-2330.54,0.00049315,120]
[357080177,1743698178939,-424.37233815,0.00049315,120]
[357080178,1743698178974,-2328.45,0.00049315,120]
[357080179,1743698179009,-500.0,0.00049315,120]
[357080180,1743698179044,-500.0,0.00049315,120]
[357080181,1743698179078,-536.19996247,0.00049315,120]
[357080182,1743698179114,-515.08456467,0.00049315,120]
[357080183,1743698179148,-500.0,0.00049315,120]
[357080184,1743698179183,-2266.19,0.00049315,120]
[357080185,1743698179217,-500.0,0.00049315,120]
[357080186,1743698179252,-500.0,0.00049315,120]
[357080187,1743698179286,-500.0,0.00049315,120]
[357080188,1743698179320,-500.0,0.00049315,120]
[357080189,1743698179353,-500.0,0.00049315,120]
[357080190,1743698179388,-518.12587542,0.00049315,120]
[357080191,1743698179424,-974.8,0.00049315,120]
[357080192,1743698179460,-635.98483394,0.00049315,120]
[357080193,1743698179494,-500.0,0.00049315,120]
[357080194,1743698179527,-1225.35,0.00049315,120]
[357080195,1743698179559,-2221.52,0.00049315,120]
[357080196,1743698179594,-500.0,0.00049315,120]
[357080197,1743698179627,-2105.84,0.00049315,120]
[357080198,1743698179659,-1445.64,0.00049315,120]
[357080199,1743698179693,-500.0,0.00049315,120]
[357080200,1743698179728,-500.0,0.00049315,120]
[357080201,1743698179763,-500.0,0.00049315,120]
[357080202,1743698179798,-151.05500383,0.00049315,120]
[357080203,1743698179831,-500.0,0.00049315,120]
[357080204,1743698179865,-500.0,0.00049315,120]
[357080205,1743698179898,-1013.0,0.00049315,30]
[357080206,1743698179932,-500.0,0.00049315,120]
[357080207,1743698179963,-509.1191994,0.00049315,120]
[357080208,1743698179997,-500.0,0.00049315,120]
[357080209,1743698180032,-500.0,0.00049315,120]
[357080210,1743698180065,-500.0,0.00049315,120]
[357080211,1743698180104,-2796.71,0.00049315,120]
[357080212,1743698180138,-500.0,0.00049315,120]
[357080213,1743698180172,-2909.82,0.00049315,120]
[357080214,1743698180206,-500.0,0.00049315,120]
[357080215,1743698180242,-702.82,0.00049315,120]
[357080216,1743698180276,-500.0,0.00049315,120]
[357080217,1743698180309,-527.93284321,0.00049315,120]
[357080218,1743698180342,-1301.72,0.00049315,120]
[357080219,1743698180379,-500.0,0.00049315,120]
[357080220,1743698180414,-2906.47,0.00049315,120]
[357080221,1743698180448,-500.0,0.00049315,120]
[357080222,1743698180484,-500.0,0.00049315,120]
[357080223,1743698180518,-500.0,0.00049315,120]
[357080224,1743698180717,-2471.68,0.00049315,120]
[357080225,1743698180754,-500.0,0.00049315,120]
[357080226,1743698180789,-455.87702377,0.00049315,120]
[357080227,1743698180821,-500.0,0.00049315,120]
[357080228,1743698180854,-500.0,0.00049315,120]
[357080229,1743698180887,-500.0,0.00049315,120]
[357080230,1743698180921,-541.30609799,0.00049315,120]
[357080231,1743698180953,-750.24,0.00049315,120]
[357080232,1743698180987,-517.15756562,0.00049315,120]
[357080233,1743698181020,-500.0,0.00049315,120]
[357080234,1743698181054,-500.0,0.00049315,120]
[357080235,1743698181088,-500.0,0.00049315,120]
[357080236,1743698181122,-500.0,0.00049315,120]
[357080237,1743698181155,-3298.32,0.00049315,120]
[357080238,1743698181186,-500.0,0.00049315,120]
[357080239,1743698181219,-3599.14,0.00049315,120]
[357080240,1743698181250,-500.0,0.00049315,120]
[357080241,1743698181283,-500.0,0.00049315,120]
[357080242,1743698181315,-480.43383589,0.00049315,120]
[357080243,1743698181349,-500.0,0.00049315,120]
[357080244,1743698181382,-364.45595798,0.00049315,120]
[357080245,1743698181414,-1412.58,0.00049315,120]
[357080246,1743698181445,-322.85110369,0.00049315,120]
[357080247,1743698181478,-2227.87,0.00049315,120]
[357080248,1743698181509,-2800.88,0.00049315,120]
[357080249,1743698181541,-500.0,0.00049315,120]
[357080250,1743698181572,-674.18,0.00049315,120]
[357080251,1743698181603,-500.0,0.00049315,120]
[357080252,1743698181633,-820.16,0.00049315,120]
[357080253,1743698181664,-1369.43,0.00049315,120]
[357080254,1743698181694,-2662.57,0.00049315,120]
[357080255,1743698181725,-500.0,0.00049315,120]
[357080256,1743698181757,-500.0,0.00049315,120]
[357080257,1743698181793,-500.0,0.00049315,120]
[357080258,1743698181824,-500.0,0.00049315,120]
[357080259,1743698181855,-500.0,0.00049315,120]
[357080260,1743698181886,-500.0,0.00049315,120]
[357080261,1743698181915,-282.45693166,0.00049315,120]
[357080262,1743698181945,-500.0,0.00049315,120]
[357080263,1743698181975,-425.65870934,0.00049315,120]
[357080264,1743698182005,-500.0,0.00049315,120]
[357080265,1743698182035,-3050.83,0.00049315,120]
[357080266,1743698182066,-500.0,0.00049315,120]
[357080267,1743698182096,-572.61286812,0.00049315,120]
[357080268,1743698182127,-2491.18,0.00049315,120]
[357080269,1743698182157,-500.0,0.00049315,120]
[357080270,1743698182187,-2601.67,0.00049315,120]
[357080271,1743698182220,-381.25099399,0.00049315,120]
[357080272,1743698182251,-2787.59,0.00049315,120]
[357080273,1743698182281,-158.41649907,0.00049315,120]
[357080274,1743698182312,-500.0,0.00049315,120]
[357080275,1743698182342,-500.0,0.00049315,120]
[357080276,1743698182380,-500.0,0.00049315,120]
[357080277,1743698182413,-500.0,0.00049315,120]
[357080278,1743698182446,-2444.47,0.00049315,120]
[357080279,1743698182480,-590.93,0.00049315,120]
[357080280,1743698182511,-500.0,0.00049315,120]
[357080281,1743698182542,-500.0,0.00049315,120]
[357080282,1743698182575,-1037.65,0.00049315,120]
[357080283,1743698182606,-500.0,0.00049315,120]
[357080284,1743698182637,-796.34,0.00049315,120]
[357080285,1743698182668,-500.0,0.00049315,120]
[357080286,1743698182699,-500.0,0.00049315,120]
[357080287,1743698182729,-500.0,0.00049315,120]
[357080288,1743698182760,-500.0,0.00049315,120]
[357080289,1743698182793,-500.0,0.00049315,120]
[357080290,1743698182827,-500.0,0.00049315,120]
[357080291,1743698182860,-500.0,0.00049315,120]
[357080292,1743698182891,-2219.6,0.00049315,120]
[357080293,1743698182921,-2822.63,0.00049315,120]
[357080294,1743698182954,-2118.24,0.00049315,120]
[357080295,1743698182985,-500.0,0.00049315,120]
[357080296,1743698183017,-500.0,0.00049315,120]
[357080297,1743698183048,-500.0,0.00049315,120]
[357080298,1743698183079,-500.0,0.00049315,120]
[357080299,1743698183112,-500.0,0.00049315,120]
[357080300,1743698183144,-500.0,0.00049315,120]
[357080301,1743698183175,-500.0,0.00049315,120]
[357080302,1743698183207,-2237.04,0.00049315,120]
[357080303,1743698183238,-500.0,0.00049315,120]
[357080304,1743698183270,-2896.02,0.00049315,120]
[357080305,1743698183302,-500.0,0.00049315,120]
[357080306,1743698183334,-500.0,0.00049315,120]
[357080307,1743698183367,-551.18457823,0.00049315,120]
[357080308,1743698183404,-2159.51,0.00049315,120]
[357080309,1743698183438,-500.0,0.00049315,120]
[357080310,1743698183472,-500.0,0.00049315,120]
[357080311,1743698183504,-2346.94,0.00049315,120]
[357080312,1743698183536,-2794.42,0.00049315,120]
[357080313,1743698183568,-535.6052003,0.00049315,120]
[357080314,1743698183600,-500.0,0.00049315,120]
[357080315,1743698183632,-2271.21,0.00049315,120]
[357080316,1743698183664,-1060.64,0.00049315,120]
[357080317,1743698183699,-1940.67,0.00049315,120]
[357080318,1743698183731,-500.0,0.00049315,120]
[357080319,1743698183765,-500.0,0.00049315,120]
[357080320,1743698183798,-256.48734064,0.00049315,120]
[357080321,1743698183831,-404.26617225,0.00049315,120]
[357080322,1743698183862,-2794.34,0.00049315,120]
[357080323,1743698183893,-500.0,0.00049315,120]
[357080324,1743698183926,-500.0,0.00049315,120]
[357080325,1743698183958,-500.0,0.00049315,100]
[357080326,1743698183989,-500.0,0.00049315,120]
[357080327,1743698184023,-500.0,0.00049315,120]
[357080328,1743698184202,-500.0,0.00049315,120]
[357080329,1743698184238,-500.0,0.00049315,120]
[357080330,1743698184270,-500.0,0.00049315,120]
[357080331,1743698184302,-500.0,0.00049315,120]
[357080332,1743698184335,-500.0,0.00049315,120]
[357080333,1743698184374,-2197.51,0.00049315,120]
[357080334,1743698184414,-227.18014924,0.0004937,30]
[357080335,1743698184453,-277.629398,0.000495,120]
[357080336,1743698184492,-151.0,0.000495,120]
[357080337,1743698184528,-270.133267,0.000495,120]
[357080338,1743698184564,-1000.0,0.00049508,30]
[357080339,1743698184600,-500.0,0.00049523,30]
[357080340,1743698184635,-151.0,0.00049589,120]
[357080341,1743698184669,-2093.785995,0.00049589,120]
[357080342,1743698184704,-151.0,0.00049589,120]
[357080343,1743698184738,-151.0,0.00049589,120]
[357080344,1743698184772,-151.0,0.00049589,120]
[357080345,1743698184809,-153.861037,0.00049589,120]
[357080346,1743698184844,-192.384275,0.00049589,120]
[357080347,1743698184882,-2136.140376,0.00049589,120]
[357080348,1743698184916,-151.0,0.00049589,120]
[357080349,1743698184951,-151.0,0.00049589,120]
[357080350,1743698184987,-158.639196,0.00049589,120]
[357080351,1743698185022,-151.0,0.00049589,120]
[357080352,1743698185059,-500.0,0.00049589,120]
[357080353,1743698185098,-500.0,0.00049589,120]
[357080354,1743698185136,-500.0,0.00049589,120]
[357080355,1743698185173,-560.79584227,0.00049589,120]
[357080356,1743698185209,-500.0,0.00049589,120]
[357080357,1743698185246,-500.0,0.00049589,120]
[357080358,1743698185284,-500.0,0.00049589,120]
[357080359,1743698185322,-500.0,0.00049589,120]
[357080360,1743698185358,-405.19029145,0.00049589,120]
[357080361,1743698185393,-500.0,0.00049589,120]
[357080362,1743698185430,-500.0,0.00049589,120]
[357080363,1743698185466,-500.0,0.00049589,120]
[357080364,1743698185502,-330.82293666,0.00049589,120]
[357080365,1743698185535,-152.509744,0.00049589,120]
[357080366,1743698185571,-323.24120704,0.00049589,120]
[357080367,1743698185605,-500.0,0.00049589,120]
[357080368,1743698185639,-619.86200255,0.00049589,120]
[357080369,1743698185673,-500.0,0.00049589,120]
[357080370,1743698185708,-544.67525703,0.00049589,120]
[357080371,1743698185744,-570.17734111,0.00049589,120]
[357080372,1743698185781,-500.0,0.00049589,120]
[357080373,1743698185819,-500.0,0.00049589,120]
[357080374,1743698185858,-500.0,0.00049589,120]
[357080375,1743698185896,-533.51822067,0.00049589,120]
[357080376,1743698185932,-500.0,0.00049589,120]
[357080377,1743698185966,-500.0,0.00049589,120]
[357080378,1743698186001,-500.0,0.00049589,120]
[357080379,1743698186035,-500.0,0.00049589,120]
[357080380,1743698186068,-500.0,0.00049589,120]
[357080381,1743698186103,-524.11138136,0.00049589,120]
[357080382,1743698186137,-500.0,0.00049589,120]
[357080383,1743698186171,-500.0,0.00049589,120]
[357080384,1743698186206,-500.0,0.00049589,120]
[357080385,1743698186240,-500.0,0.00049589,120]
[357080386,1743698186275,-606.18659248,0.00049589,120]
[357080387,1743698186313,-500.0,0.00049589,120]
[357080388,1743698186349,-151.0,0.00049589,120]
[357080389,1743698186385,-500.0,0.00049589,120]
[357080390,1743698186423,-500.0,0.00049589,120]
[357080391,1743698186459,-327.63163012,0.00049589,120]
[357080392,1743698186494,-500.0,0.00049589,120]
[357080393,1743698186528,-500.0,0.00049589,120]
[357080394,1743698186563,-500.0,0.00049589,120]
[357080395,1743698186597,-500.0,0.00049589,120]
[357080396,1743698186631,-500.0,0.00049589,120]
[357080397,1743698186665,-500.0,0.00049589,120]
[357080398,1743698186699,-544.72861129,0.00049589,120]
[357080399,1743698186733,-500.0,0.00049589,120]
[357080400,1743698186767,-512.52517093,0.00049589,120]
[357080401,1743698186801,-500.0,0.00049589,120]
[357080402,1743698186835,-500.0,0.00049589,120]
[357080403,1743698186868,-500.0,0.00049589,120]
[357080404,1743698186901,-500.0,0.00049589,120]
[357080405,1743698186933,-500.0,0.00049589,120]
[357080406,1743698186966,-583.24,0.00049589,120]
[357080407,1743698187000,-500.0,0.00049589,120]
[357080408,1743698187034,-500.0,0.00049589,120]
[357080409,1743698187067,-500.0,0.00049589,120]
[357080410,1743698187102,-175.64131258,0.00049589,120]
[357080411,1743698187137,-528.18058478,0.00049589,120]
[357080412,1743698187170,-517.44134173,0.00049589,120]
[357080413,1743698187205,-557.63621252,0.00049589,120]
[357080414,1743698187242,-521.61891715,0.00049589,120]
[357080415,1743698187279,-500.0,0.00049589,120]
[357080416,1743698187314,-500.0,0.00049589,120]
[357080417,1743698187349,-500.0,0.00049589,120]
[357080418,1743698187387,-500.0,0.00049589,120]
[357080419,1743698187425,-577.03543233,0.00049589,120]
[357080420,1743698187462,-500.0,0.00049589,120]
[357080421,1743698187501,-500.0,0.00049589,120]
[357080422,1743698187540,-500.0,0.00049589,120]
[357080423,1743698187577,-151.0,0.00049589,120]
[357080424,1743698187612,-500.0,0.00049589,120]
[357080425,1743698187648,-500.0,0.00049589,120]
[357080426,1743698187685,-500.0,0.00049589,120]
[357080427,1743698187722,-573.21893925,0.00049589,120]
[357080428,1743698187758,-500.0,0.00049589,120]
[357080429,1743698187794,-500.0,0.00049589,120]
[357080430,1743698187833,-666.51,0.00049589,120]
[357080431,1743698187872,-606.92913788,0.00049589,120]
[357080432,1743698188066,-500.0,0.00049589,120]
[357080433,1743698188105,-500.0,0.00049589,120]
[357080434,1743698188143,-500.0,0.00049589,120]
[357080435,1743698188182,-548.03311777,0.00049589,120]
[357080436,1743698188219,-500.0,0.00049589,30]
[357080437,1743698188255,-566.43418764,0.00049589,120]
[357080438,1743698188292,-500.0,0.00049589,120]
[357080439,1743698188330,-569.70029418,0.00049589,120]
[357080440,1743698188366,-500.0,0.00049589,120]
[357080441,1743698188404,-500.0,0.00049589,120]
[357080442,1743698188440,-151.0,0.00049589,120]
[357080443,1743698188475,-3020.08,0.00049589,120]
[357080444,1743698188508,-2249.43,0.00049589,120]
[357080445,1743698188542,-378.53033742,0.00049589,120]
[357080446,1743698188577,-500.0,0.00049589,120]
[357080447,1743698188610,-2247.88,0.00049589,120]
[357080448,1743698188644,-151.0,0.00049589,120]
[357080449,1743698188676,-803.85,0.00049589,120]
[357080450,1743698188710,-500.0,0.00049589,120]
[357080451,1743698188743,-504.85312095,0.00049589,120]
[357080452,1743698188776,-500.0,0.00049589,120]
[357080453,1743698188808,-500.0,0.00049589,120]
[357080454,1743698188841,-151.0,0.00049589,120]
[357080455,1743698188874,-500.0,0.00049589,120]
[357080456,1743698188907,-500.0,0.00049589,120]
[357080457,1743698188941,-500.0,0.00049589,120]
[357080458,1743698188974,-522.28965052,0.00049589,120]
[357080459,1743698189007,-387.91534978,0.00049589,120]
[357080460,1743698189040,-151.0,0.00049589,120]
[357080461,1743698189076,-500.0,0.00049589,120]
[357080462,1743698189110,-500.0,0.00049589,120]
[357080463,1743698189144,-637.68159843,0.00049589,120]
[357080464,1743698189178,-151.0,0.00049589,120]
[357080465,1743698189213,-533.13,0.00049589,120]
[357080466,1743698189248,-186.81,0.00049589,120]
[357080467,1743698189283,-500.0,0.00049589,120]
[357080468,1743698189319,-365.54186431,0.00049589,120]
[357080469,1743698189357,-546.96750093,0.00049589,120]
[357080470,1743698189395,-500.0,0.00049589,120]
[357080471,1743698189433,-500.0,0.00049589,120]
[357080472,1743698189470,-151.0,0.00049589,90]
[357080473,1743698189507,-2537.41,0.00049589,120]
[357080474,1743698189543,-500.0,0.00049589,120]
[357080475,1743698189579,-1396.11,0.00049589,30]
[357080476,1743698189615,-151.0,0.00049589,120]
[357080477,1743698189652,-1313.65,0.00049589,120]
[357080478,1743698189689,-500.0,0.00049589,120]
[357080479,1743698189724,-500.0,0.00049589,120]
[357080480,1743698189759,-500.0,0.00049589,120]
[357080481,1743698189793,-2679.75,0.00049589,120]
[357080482,1743698189827,-599.67474876,0.00049589,120]
[357080483,1743698189861,-500.0,0.00049589,120]
[357080484,1743698189895,-500.0,0.00049589,120]
[357080485,1743698189927,-500.0,0.00049589,120]
[357080486,1743698189959,-500.0,0.00049589,120]
[357080487,1743698189991,-164.28515885,0.00049589,120]
[357080488,1743698190025,-611.68,0.00049589,120]
[357080489,1743698190059,-500.0,0.00049589,120]
[357080490,1743698190093,-2854.03,0.00049589,120]
[357080491,1743698190127,-500.0,0.00049589,120]
[357080492,1743698190160,-500.0,0.00049589,120]
[357080493,1743698190193,-500.0,0.00049589,120]
[357080494,1743698190229,-2091.94,0.00049589,120]
[357080495,1743698190264,-500.0,0.00049589,60]
[357080496,1743698190298,-2232.86,0.00049589,120]
[357080497,1743698190333,-151.0,0.00049589,120]
[357080498,1743698190371,-500.0,0.00049589,120]
[357080499,1743698190408,-843.19,0.00049589,120]
[357080500,1743698190443,-1364.44,0.00049589,120]
[357080501,1743698190479,-500.0,0.00049589,120]
[357080502,1743698190512,-546.18,0.00049589,120]
[357080503,1743698190545,-304.64628302,0.00049589,120]
[357080504,1743698190580,-500.0,0.00049589,120]
[357080505,1743698190617,-2026.36,0.00049589,120]
[357080506,1743698190658,-2423.99,0.00049589,120]
[357080507,1743698190698,-1887.86,0.00049589,120]
[357080508,1743698190736,-2107.72,0.00049589,120]
[357080509,1743698190774,-538.68665722,0.00049589,120]
[357080510,1743698190809,-500.0,0.00049589,120]
[357080511,1743698190842,-500.0,0.00049589,120]
[357080512,1743698190881,-500.0,0.00049589,120]
[357080513,1743698190916,-500.0,0.00049589,120]
[357080514,1743698190955,-535.91403189,0.00049589,120]
[357080515,1743698190993,-500.0,0.00049589,120]
[357080516,1743698191029,-2073.2,0.00049589,120]
[357080517,1743698191062,-500.0,0.00049589,120]
[357080518,1743698191096,-593.13,0.00049589,120]
[357080519,1743698191131,-521.77926989,0.00049589,120]
[357080520,1743698191166,-500.0,0.00049589,120]
[357080521,1743698191200,-500.0,0.00049589,120]
[357080522,1743698191234,-500.0,0.00049589,120]
[357080523,1743698191268,-500.0,0.00049589,120]
[357080524,1743698191301,-216.72079487,0.00049589,120]
[357080525,1743698191334,-591.77577548,0.00049589,120]
[357080526,1743698191368,-2047.37,0.00049589,120]
[357080527,1743698191404,-500.0,0.00049589,120]
[357080528,1743698191438,-2777.73,0.00049589,120]
[357080529,1743698191471,-540.24232005,0.00049589,120]
[357080530,1743698191502,-739.97,0.00049589,120]
[357080531,1743698191534,-2586.2,0.00049589,120]
[357080532,1743698191568,-2802.4,0.00049589,120]
[357080533,1743698191602,-2550.35,0.00049589,120]
[357080534,1743698191635,-500.0,0.00049589,120]
[357080535,1743698191670,-500.0,0.00049589,120]
[357080536,1743698191844,-500.0,0.00049589,120]
[357080537,1743698191884,-500.0,0.00049589,120]
[357080538,1743698191920,-151.0,0.00049589,120]
[357080539,1743698191957,-2656.51,0.00049589,120]
[357080540,1743698191993,-2556.59,0.00049589,120]
[357080541,1743698192029,-500.0,0.00049589,120]
[357080542,1743698192062,-500.0,0.00049589,120]
[357080543,1743698192096,-500.0,0.00049589,120]
[357080544,1743698192131,-151.0,0.00049589,120]
[357080545,1743698192166,-403.99232306,0.00049589,120]
[357080546,1743698192200,-458.11598294,0.00049589,120]
[357080547,1743698192235,-151.0,0.00049589,120]
[357080548,1743698192270,-2451.99,0.00049589,120]
[357080549,1743698192307,-500.0,0.00049589,120]
[357080550,1743698192343,-500.0,0.00049589,120]
[357080551,1743698192383,-500.0,0.00049589,120]
[357080552,1743698192420,-500.0,0.00049589,120]
[357080553,1743698192458,-523.18150155,0.00049589,120]
[357080554,1743698192495,-575.57878981,0.00049589,120]
[357080555,1743698192529,-1988.52,0.00049589,120]
[357080556,1743698192565,-500.0,0.00049589,120]
[357080557,1743698192604,-500.0,0.00049589,120]
[357080558,1743698192642,-500.0,0.00049589,120]
[357080559,1743698192679,-500.0,0.00049589,120]
[357080560,1743698192717,-2318.59,0.00049589,120]
[357080561,1743698192757,-766.62,0.00049589,120]
[357080562,1743698192796,-500.0,0.00049589,120]
[357080563,1743698192835,-622.49551266,0.00049589,120]
[357080564,1743698192874,-151.0,0.00049589,120]
[357080565,1743698192912,-500.0,0.00049589,120]
[357080566,1743698192948,-500.0,0.00049589,120]
[357080567,1743698192985,-520.1367433,0.00049589,120]
[357080568,1743698193023,-506.11760676,0.00049589,120]
[357080569,1743698193062,-500.0,0.00049589,120]
[357080570,1743698193100,-1294.34,0.00049589,120]
[357080571,1743698193140,-557.89,0.00049589,120]
[357080572,1743698193178,-500.0,0.00049589,120]
[357080573,1743698193218,-541.10686414,0.00049589,120]
[357080574,1743698193258,-2813.99,0.00049589,120]
[357080575,1743698193296,-709.61,0.00049589,120]
[357080576,1743698193335,-500.0,0.00049589,120]
[357080577,1743698193376,-2020.25,0.00049589,120]
[357080578,1743698193419,-500.0,0.00049589,120]
[357080579,1743698193460,-500.0,0.00049589,120]
[357080580,1743698193500,-500.0,0.00049589,120]
[357080581,1743698193540,-1443.11,0.00049589,120]
[357080582,1743698193579,-2853.13,0.00049589,120]
[357080583,1743698193618,-369.618815,0.00049589,120]
[357080584,1743698193657,-500.0,0.00049589,120]
[357080585,1743698193696,-576.34076754,0.00049589,120]
[357080586,1743698193737,-151.0,0.00049589,120]
[357080587,1743698193776,-369.618815,0.00049589,120]
[357080588,1743698193814,-500.0,0.00049589,120]
[357080589,1743698193853,-2679.44,0.00049589,120]
[357080590,1743698193891,-531.82587231,0.00049589,120]
[357080591,1743698193928,-546.26950127,0.00049589,120]
[357080592,1743698193965,-2481.13,0.00049589,120]
[357080593,1743698194002,-626.05,0.00049589,120]
[357080594,1743698194037,-2536.05,0.00049589,120]
[357080595,1743698194073,-500.0,0.00049589,120]
[357080596,1743698194109,-2053.39,0.00049589,120]
[357080597,1743698194147,-151.0,0.00049589,120]
[357080598,1743698194187,-909.75,0.00049589,120]
[357080599,1743698194229,-531.86274096,0.00049589,120]
[357080600,1743698194266,-500.0,0.00049589,120]
[357080601,1743698194304,-500.0,0.00049589,120]
[357080602,1743698194341,-500.0,0.00049589,120]
[357080603,1743698194383,-917.93,0.00049589,120]
[357080604,1743698194420,-151.0,0.00049589,120]
[357080605,1743698194457,-500.0,0.00049589,120]
[357080606,1743698194494,-563.61089966,0.00049589,120]
[357080607,1743698194530,-500.0,0.00049589,120]
[357080608,1743698194566,-500.0,0.00049589,120]
[357080609,1743698194605,-500.0,0.00049589,120]
[357080610,1743698194641,-500.0,0.00049589,120]
[357080611,1743698194676,-500.0,0.00049589,120]
[357080612,1743698194710,-500.0,0.00049589,120]
[357080613,1743698194746,-642.53140538,0.00049589,120]
[357080614,1743698194784,-500.0,0.00049589,120]
[357080615,1743698194821,-500.0,0.00049589,120]
[357080616,1743698194859,-240.4155274,0.00049589,120]
[357080617,1743698194896,-500.0,0.00049589,120]
[357080618,1743698194932,-1488.97,0.00049589,120]
[357080619,1743698194967,-3974.55,0.00049589,120]
[357080620,1743698195001,-500.0,0.00049589,120]
[357080621,1743698195034,-500.0,0.00049589,30]
[357080622,1743698195068,-401.81789253,0.00049589,120]
[357080623,1743698195100,-337.01220922,0.00049589,120]
[357080624,1743698195138,-764.51,0.00049589,120]
[357080625,1743698195172,-500.0,0.00049589,120]
[357080626,1743698195205,-1000.0,0.00049589,120]
[357080627,1743698195239,-546.07741405,0.00049589,120]
[357080628,1743698195275,-500.0,0.00049589,120]
[357080629,1743698195309,-500.0,0.00049589,120]
[357080630,1743698195342,-1138.89,0.00049589,120]
[357080631,1743698195376,-500.0,0.00049589,120]
[357080632,1743698195410,-500.0,0.00049589,120]
[357080633,1743698195444,-394.27311219,0.00049589,120]
[357080634,1743698195478,-500.0,0.00049589,120]
[357080635,1743698195512,-500.0,0.00049589,120]
[357080636,1743698195546,-500.0,0.00049589,120]